fUSD/lending_fUSD_20250119
["ID","MTS","AMOUNT","RATE_DAILY","PERIOD"]
[349596883,1737321050307,-922.29,0.00020273,2]
[349596884,1737321050316,-500.0,0.00020273,2]
[349596885,1737321050325,-1694.17,0.00020273,2]
[349596886,1737321050334,-595.63406659,0.00020273,2]
[349596887,1737321050347,-67.94593341,0.00020273,2]
[349596888,1737321050356,-243.0332876,0.00020273,2]
[349596889,1737321050367,-256.9667124,0.00020273,2]
[349596890,1737321050376,-500.0,0.00020273,2]
[349596891,1737321050385,-48.85700386,0.00020273,2]
[349596892,1737321050396,-629.65299614,0.00020273,2]
[349596893,1737321050405,-78.95381466,0.00020273,2]
[349596896,1737321293875,152.62,0.00010137,2]
[349596898,1737321680384,1488.32,0.00019287,30]
[349596900,1737321908613,52697.38,0.00012,2]
[349596901,1737321908643,259.81864537,0.00012,2]
[349596902,1737321920157,446.04842915,9e-05,2]
[349596903,1737322002126,-260.94872866,0.00015,2]
[349596904,1737322039061,205.0,9.8e-05,2]
[349596905,1737322061962,1600.55128398,0.0001,2]
[349596906,1737322063029,200.0,0.0001,2]
[349596909,1737322082444,7288.5816415,0.0001,2]
[349596910,1737322082466,10000.0,0.0001,2]
[349596911,1737322082488,10000.0,0.0001,2]
[349596912,1737322082512,10000.0,0.0001,2]
[349596913,1737322082540,10000.0,0.0001,2]
[349596914,1737322082564,10000.0,0.0001,2]
[349596915,1737322082588,10000.0,0.0001,2]
[349596916,1737322082612,10000.0,0.0001,2]
[349596917,1737322082818,10000.0,0.0001,2]
[349596918,1737322082840,10000.0,0.0001,2]
[349596919,1737322082862,10000.0,0.0001,2]
[349596920,1737322082888,10000.0,0.0001,2]
[349596921,1737322082910,10000.0,0.0001,2]
[349596922,1737322082934,10000.0,0.0001,2]
[349596923,1737322082956,10000.0,0.0001,2]
[349596924,1737322082980,10000.0,0.0001,2]
[349596925,1737322083002,10000.0,0.0001,2]
[349596926,1737322083027,10000.0,0.0001,2]
[349596927,1737322083063,10000.0,0.0001,2]
[349596928,1737322083089,10000.0,0.0001,2]
[349596929,1737322083113,10000.0,0.0001,2]
[349596930,1737322083136,10000.0,0.0001,2]
[349596931,1737322083159,10000.0,0.0001,2]
[349596932,1737322083181,10000.0,0.0001,2]
[349596933,1737322083203,10000.0,0.0001,2]
[349596934,1737322083228,10000.0,0.0001,2]
[349596935,1737322083253,10000.0,0.0001,2]
[349596936,1737322083278,10000.0,0.0001,2]
[349596937,1737322083314,10000.0,0.0001,2]
[349596938,1737322083339,10000.0,0.0001,2]
[349596939,1737322083363,10000.0,0.0001,2]
[349596940,1737322083386,10000.0,0.0001,2]
[349596941,1737322083409,10000.0,0.0001,2]
[349596942,1737322083432,10000.0,0.0001,2]
[349596943,1737322083455,10000.0,0.0001,2]
[349596944,1737322083478,10000.0,0.0001,2]
[349596945,1737322083502,10000.0,0.0001,2]
[349596946,1737322083525,10000.0,0.0001,2]
[349596947,1737322083548,10000.0,0.0001,2]
[349596948,1737322083571,10000.0,0.0001,2]
[349596949,1737322083595,10000.0,0.0001,2]
[349596950,1737322083618,10000.0,0.0001,2]
[349596951,1737322083641,10000.0,0.0001,2]
[349596952,1737322083664,10000.0,0.0001,2]
[349596953,1737322083687,10000.0,0.0001,2]
[349596954,1737322083712,10000.0,0.0001,2]
[349596955,1737322083738,10000.0,0.0001,2]
[349596956,1737322083763,10000.0,0.0001,2]
[349596957,1737322083803,10000.0,0.0001,2]
[349596958,1737322083828,10000.0,0.0001,2]
[349596959,1737322083854,10000.0,0.0001,2]
[349596960,1737322083880,10000.0,0.0001,2]
[349596961,1737322083908,10000.0,0.0001,2]
[349596962,1737322083933,10000.0,0.0001,2]
[349596963,1737322083956,10000.0,0.0001,2]
[349596964,1737322083980,10000.0,0.0001,2]
[349596965,1737322084012,2281.55977701,0.0001,2]
[349596966,1737322084039,2281.55977701,0.0001,2]
[349596967,1737322084066,2281.55977701,0.0001,2]
[349596968,1737322084094,2281.55977701,0.0001,2]
[349596969,1737322084122,2281.55977701,0.0001,2]
[349596970,1737322084150,2281.55977701,0.0001,2]
[349596971,1737322084176,2281.55977701,0.0001,2]
[349596972,1737322084204,2281.55977701,0.0001,2]
[349596973,1737322084231,2281.55977701,0.0001,2]
[349596974,1737322084258,762014.22931775,0.0001,2]
[349596978,1737322214741,221.4,0.00010137,2]
[349597014,1737322231576,-346.74234036,0.000149,2]
[349597015,1737322231589,-270.30555624,0.000149,2]
[349597016,1737322231604,-14.32047932,0.00015,2]
[349597018,1737322231646,-274.73079202,0.00015,2]
[349597019,1737322231657,-150.65083542,0.00015,20]
[349597020,1737322231667,-7698.0,0.00015021,2]
[349597021,1737322231676,-300.0,0.00015299,2]
[349597022,1737322231686,-1354.11041212,0.000153,2]
[349597023,1737322231696,-260.94575388,0.000154,2]
[349597024,1737322231706,-1530.2252728,0.00016,2]
[349597025,1737322231715,-300.0,0.00016739,2]
[349597026,1737322231725,-221.4,0.00016813,2]
[349597027,1737322231735,-600.0,0.00017,2]
[349597028,1737322231744,-885.61,0.00017575,2]
[349597029,1737322231754,-19502.33215527,0.00018,10]
[349597030,1737322231766,-264.17532097,0.00018,10]
[349597031,1737322231777,-934.47684,0.00018,10]
[349597032,1737322231789,-837.27060004,0.00018,10]
[349597033,1737322231800,-1400.402518,0.00018,10]
[349597034,1737322231812,-10524.0,0.00018,10]
[349597035,1737322231823,-988.468,0.00018,10]
[349597036,1737322231835,-1201.2000001,0.00018,10]
[349597037,1737322231848,-1076.14982058,0.00018,10]
[349597038,1737322231861,-1000.0,0.00018401,2]
[349597039,1737322231871,-263.57,0.00018466,2]
[349597040,1737322231881,-176.5,0.00018638,2]
[349597041,1737322231891,-351.77,0.0001868,2]
[349597042,1737322231899,-405.0,0.00018779,2]
[349597043,1737322231907,-10821.21016709,0.0001878,2]
[349597044,1737322231925,-2082.0,0.0001878,2]
[349597045,1737322231937,-1601.46032278,0.0001878,2]
[349597046,1737322231949,-4537.68781322,0.0001878,2]
[349597047,1737322231963,-849.99999,0.0001878,2]
[349597048,1737322231974,-3149.999975,0.0001878,2]
[349597049,1737322231988,-16688.64017201,0.0001878,2]
[349597050,1737322231998,-650.0,0.00019,2]
[349597051,1737322232010,-250.0,0.00019072,2]
[349597052,1737322232020,-500.0,0.00019178,2]
[349597053,1737322232030,-987.09,0.00019178,2]
[349597055,1737322232039,-500.0,0.00019178,2]
[349597057,1737322232051,-110.26982801,0.00019178,2]
[349597059,1737322232063,-389.73017199,0.00019178,2]
[349597061,1737322232073,-502.43,0.00019178,2]
[349597063,1737322232083,-307.83982831,0.00019178,2]
[349597065,1737322232095,-655.49017169,0.00019178,2]
[349597066,1737322232113,-500.0,0.00019178,2]
[349597067,1737322232123,-312.63046804,0.00019178,2]
[349597069,1737322232133,-500.0,0.00019178,2]
[349597071,1737322232143,-500.0,0.00019178,2]
[349597073,1737322232154,-250.0,0.00019198,2]
[349597075,1737322232164,-161.82,0.0001931,2]
[349597077,1737322232174,-262.15936027,0.00019419,2]
[349597080,1737322232191,-311.184801,0.00019419,2]
[349597082,1737322232203,-166.24583873,0.00019419,2]
[349597084,1737322232213,-500.0,0.00019452,2]
[349597086,1737322232222,-485.56318127,0.00019452,2]
[349597088,1737322232237,-501.52681873,0.00019452,2]
[349597090,1737322232247,-500.0,0.00019452,2]
[349597092,1737322232256,-500.0,0.00019452,2]
[349597094,1737322232266,-502.43,0.00019452,2]
[349597096,1737322232276,-963.33,0.00019452,2]
[349597098,1737322232285,-500.0,0.00019452,2]
[349597100,1737322232295,-500.0,0.00019452,2]
[349597102,1737322232305,-500.0,0.00019452,2]
[349597104,1737322232315,-713.32174201,0.000195,2]
[349597106,1737322232324,-1328.163,0.00019536,2]
[349597108,1737322232333,-500.0,0.00019625,2]
[349597110,1737322232342,-932.00135133,0.00019625,2]
[349597112,1737322232362,-2225.99164867,0.00019625,2]
[349597114,1737322232372,-500.0,0.00019724,2]
[349597116,1737322232381,-500.0,0.00019724,2]
[349597118,1737322232391,-500.0,0.00019724,2]
[349597120,1737322232400,-407.27023133,0.00019724,2]
[349597122,1737322232410,-500.0,0.00019724,2]
[349597124,1737322232419,-500.0,0.00019724,2]
[349597126,1737322232430,-500.0,0.00019724,2]
[349597128,1737322232439,-500.0,0.00019724,2]
[349597130,1737322232448,-508.10452913,0.00019724,2]
[349597132,1737322232457,-500.0,0.00019724,2]
[349597134,1737322232467,-500.0,0.00019724,2]
[349597136,1737322232476,-500.0,0.00019724,2]
[349597138,1737322232485,-500.0,0.00019724,2]
[349597140,1737322232494,-500.0,0.00019724,2]
[349597142,1737322232504,-500.0,0.00019724,2]
[349597144,1737322232513,-500.0,0.00019724,2]
[349597146,1737322232523,-500.0,0.00019724,2]
[349597148,1737322232531,-500.0,0.00019724,2]
[349597150,1737322232541,-598.93,0.00019724,2]
[349597152,1737322232550,-500.0,0.00019724,2]
[349597154,1737322232559,-500.0,0.00019724,2]
[349597155,1737322232568,-500.0,0.00019724,2]
[349597158,1737322232578,-500.0,0.00019724,2]
[349597160,1737322232587,-500.0,0.00019724,2]
[349597162,1737322232596,-320.27343222,0.00019724,2]
[349597164,1737322232611,-500.0,0.00019724,2]
[349597165,1737322232620,-500.0,0.00019724,2]
[349597168,1737322232630,-500.0,0.00019724,2]
[349597169,1737322232639,-500.0,0.00019724,2]
[349597172,1737322232649,-1267.35,0.00019724,2]
[349597173,1737322232658,-500.0,0.00019724,2]
[349597176,1737322232668,-500.0,0.00019724,2]
[349597178,1737322232677,-500.0,0.00019724,2]
[349597180,1737322232687,-500.0,0.00019724,2]
[349597182,1737322232697,-266.3603865,0.00019725,2]
[349597184,1737322232711,-233.6396135,0.00019725,2]
[349597186,1737322232721,-500.0,0.00019725,2]
[349597188,1737322232730,-500.0,0.00019725,2]
[349597190,1737322232739,-500.0,0.00019725,2]
[349597192,1737322232748,-500.0,0.00019725,2]
[349597194,1737322232757,-500.0,0.00019725,2]
[349597196,1737322232767,-590.52,0.00019725,2]
[349597198,1737322232776,-500.0,0.00019725,2]
[349597200,1737322232786,-500.0,0.00019725,2]
[349597217,1737322232950,-500.0,0.00019725,2]
[349597219,1737322232960,-500.0,0.00019725,2]
[349597221,1737322232971,-705.9613865,0.00019725,2]
[349597223,1737322232983,-111.6886135,0.00019725,2]
[349597225,1737322232995,-500.0,0.00019726,2]
[349597227,1737322233004,-866.30173757,0.00019726,2]
[349597229,1737322233016,-120.78826243,0.00019726,2]
[349597231,1737322233027,-500.0,0.00019726,2]
[349597233,1737322233038,-500.0,0.00019726,2]
[349597235,1737322233048,-502.43,0.00019726,2]
[349597237,1737322233059,-963.33,0.00019726,2]
[349597239,1737322233069,-500.0,0.00019726,2]
[349597241,1737322233079,-500.0,0.00019726,2]
[349597243,1737322233090,-500.0,0.00019726,2]
[349597245,1737322233104,-491.21269326,0.00019798,2]
[349597247,1737322233114,-1717.2308,0.00019798,2]
[349597249,1737322233124,-1457.0451,0.00019798,2]
[349597251,1737322233135,-2716.93613491,0.000198,2]
[349597253,1737322233148,-6.92637783,0.000198,2]
[349597255,1737322233158,-885.61,0.00019839,2]
[349597257,1737322233168,-425.80543622,0.00019884,2]
[349597259,1737322233179,-260.86036384,0.00019898,2]
[349597261,1737322233188,-205.01247201,0.00019898,2]
[349597263,1737322233197,-490.23448184,0.00019898,2]
[349597265,1737322233205,-401.37075738,0.00019898,2]
[349597267,1737322233213,-649.81,0.00019898,2]
[349597269,1737322233220,-500.0,0.00019898,2]
[349597271,1737322233229,-500.0,0.00019898,2]
[349597273,1737322233240,-500.0,0.00019898,2]
[349597275,1737322233250,-174.466634,0.00019898,2]
[349597635,1737322237511,-325.533366,0.00019898,2]
[349597637,1737322237521,-26.57268185,0.00019898,2]
[349597638,1737322237533,-215.00980615,0.00019898,2]
[349597639,1737322237543,-500.0,0.00019898,2]
[349597640,1737322237553,-289.26480773,0.00019898,2]
[349597641,1737322237563,-500.0,0.00019898,2]
[349597642,1737322237573,-485.1,0.00019898,2]
[349597643,1737322237582,-107.02538612,0.00019898,2]
[349597644,1737322237594,-392.97461388,0.00019898,2]
[349597645,1737322237607,-19.16593172,0.00019898,2]
[349597646,1737322237634,-480.83406828,0.00019898,2]
[349597647,1737322237643,-500.0,0.00019898,2]
[349597648,1737322237653,-622.65905552,0.00019898,2]
[349597649,1737322237662,-500.0,0.00019898,2]
[349597650,1737322237672,-500.0,0.00019898,2]
[349597651,1737322237682,-633.64,0.00019898,2]
[349597652,1737322237691,-581.08,0.00019898,2]
[349597653,1737322237701,-505.9,0.00019898,2]
[349597654,1737322237711,-500.0,0.00019898,2]
[349597655,1737322237720,-500.0,0.00019898,2]
[349597656,1737322237729,-595.1,0.00019898,2]
[349597657,1737322237739,-500.0,0.00019898,2]
[349597658,1737322237748,-619.73,0.00019898,2]
[349597659,1737322237757,-534.73,0.00019898,2]
[349597660,1737322237767,-500.0,0.00019898,2]
[349597661,1737322237777,-770.67,0.00019898,2]
[349597662,1737322237786,-500.0,0.00019898,2]
[349597663,1737322237796,-500.0,0.00019898,2]
[349597664,1737322237806,-500.0,0.00019898,2]
[349597665,1737322237816,-1480.05,0.00019898,2]
[349597666,1737322237825,-500.0,0.00019898,2]
[349597667,1737322237837,-500.0,0.00019898,2]
[349597668,1737322237847,-500.0,0.00019898,2]
[349597669,1737322237858,-500.0,0.00019898,2]
[349597670,1737322237868,-500.0,0.00019898,2]
[349597671,1737322237878,-500.0,0.00019898,2]
[349597672,1737322237887,-1778.88,0.00019898,2]
[349597673,1737322237897,-649.07,0.00019898,2]
[349597675,1737322237908,-500.0,0.00019898,2]
[349597677,1737322237919,-770.99,0.00019898,2]
[349597679,1737322237930,-500.0,0.00019898,2]
[349597680,1737322237940,-500.0,0.00019898,2]
[349597681,1737322237949,-500.0,0.00019898,2]
[349597682,1737322237958,-1405.28,0.00019898,2]
[349597683,1737322237972,-500.0,0.00019898,2]
[349597685,1737322237982,-500.0,0.00019898,2]
[349597688,1737322237992,-500.0,0.00019898,2]
[349597689,1737322238002,-500.0,0.00019898,2]
[349597692,1737322238012,-500.0,0.00019898,2]
[349597693,1737322238021,-924.51,0.00019898,2]
[349597695,1737322238031,-500.0,0.00019898,2]
[349597698,1737322238041,-500.0,0.00019898,2]
[349597699,1737322238051,-1750.43,0.00019898,2]
[349597701,1737322238061,-608.38,0.00019898,2]
[349597703,1737322238071,-500.0,0.00019898,2]
[349597705,1737322238080,-208.85660195,0.00019898,2]
[349597707,1737322238090,-500.0,0.00019898,2]
[349597710,1737322238099,-500.0,0.00019898,2]
[349597711,1737322238112,-500.09,0.00019898,2]
[349597713,1737322238122,-500.0,0.00019898,2]
[349597715,1737322238132,-500.0,0.00019898,2]
[349597717,1737322238142,-500.0,0.00019898,2]
[349597719,1737322238151,-500.0,0.00019898,2]
[349597721,1737322238160,-500.0,0.00019898,2]
[349597723,1737322238170,-940.93,0.00019898,2]
[349597725,1737322238179,-500.0,0.00019898,2]
[349597727,1737322238189,-260.88738931,0.00019898,2]
[349597729,1737322238199,-863.64,0.00019898,2]
[349597731,1737322238208,-500.0,0.00019898,2]
[349597733,1737322238218,-500.0,0.00019898,2]
[349597735,1737322238227,-500.0,0.00019898,2]
[349597737,1737322238236,-702.71,0.00019898,2]
[349597739,1737322238245,-506.5133254,0.00019898,2]
[349597741,1737322238255,-500.0,0.00019898,2]
[349597743,1737322238264,-500.0,0.00019898,2]
[349597745,1737322238274,-710.23,0.00019898,2]
[349597747,1737322238284,-500.0,0.00019898,2]
[349597749,1737322238294,-555.31823181,0.00019898,2]
[349597751,1737322238304,-500.0,0.00019898,2]
[349597753,1737322238314,-505.80275254,0.00019898,2]
[349597755,1737322238325,-504.56984249,0.00019898,2]
[349597757,1737322238335,-543.52,0.00019898,2]
[349597759,1737322238344,-500.0,0.00019898,2]
[349597761,1737322238354,-500.0,0.00019898,2]
[349597763,1737322238371,-500.0,0.00019898,2]
[349597765,1737322238381,-500.0,0.00019898,2]
[349597767,1737322238390,-204.30604882,0.00019898,2]
[349597769,1737322238400,-1105.53,0.00019898,2]
[349597771,1737322238410,-500.0,0.00019898,2]
[349597773,1737322238419,-683.08,0.00019898,2]
[349597775,1737322238429,-593.7,0.00019898,2]
[349597777,1737322238438,-501.41332393,0.00019898,2]
[349597779,1737322238448,-500.0,0.00019898,2]
[349597781,1737322238457,-500.62770023,0.00019898,2]
[349597783,1737322238467,-500.0,0.00019898,2]
[349597785,1737322238476,-500.0,0.00019898,2]
[349597787,1737322238485,-500.0,0.00019898,2]
[349597789,1737322238495,-500.0,0.00019898,2]
[349597791,1737322238504,-502.60314726,0.00019898,2]
[349597793,1737322238513,-500.0,0.00019898,2]
[349597795,1737322238522,-503.81028674,0.00019898,2]
[349597797,1737322238532,-500.0,0.00019898,2]
[349597798,1737322238541,-500.0,0.00019898,2]
[349597799,1737322238551,-500.0,0.00019898,2]
[349597800,1737322238560,-807.0,0.00019898,2]
[349597801,1737322238570,-500.0,0.00019898,2]
[349597802,1737322238579,-500.0,0.00019898,2]
[349597803,1737322238588,-500.0,0.00019898,2]
[349597804,1737322238598,-328.09112023,0.00019898,2]
[349597805,1737322238613,-522.78,0.00019898,2]
[349597807,1737322238623,-501.94848726,0.00019898,2]
[349597809,1737322238633,-500.0,0.00019898,2]
[349597811,1737322238642,-500.0,0.00019898,2]
[349597813,1737322238652,-1482.4,0.00019898,2]
[349597815,1737322238661,-500.0,0.00019898,2]
[349597817,1737322238670,-500.0,0.00019898,2]
[349597819,1737322238679,-500.0,0.00019898,2]
[349597821,1737322238689,-500.0,0.00019898,2]
[349597822,1737322238699,-500.0,0.00019898,2]
[349597824,1737322238708,-500.0,0.00019898,2]
[349597826,1737322238717,-500.0,0.00019898,2]
[349597828,1737322238726,-648.4,0.00019898,2]
[349597830,1737322238735,-500.0,0.00019898,2]
[349597832,1737322238744,-500.0,0.00019898,2]
[349597834,1737322238754,-645.57,0.00019898,2]
[349597836,1737322238763,-500.0,0.00019898,2]
[349597838,1737322238773,-500.0,0.00019898,2]
[349597840,1737322238783,-19750.96138588,0.00019899,2]
[349597843,1737322238796,-1135.21362022,0.00019899,2]
[349597845,1737322238807,-1113.8058096,0.00019899,2]
[349597847,1737322238818,-877.5356214,0.00019899,2]
[349597849,1737322238829,-7365.1024392,0.00019899,2]
[349597851,1737322238840,-3376.13712669,0.00019899,2]
[349597858,1737322238903,-294.87271027,0.00019899,2]
[349597860,1737322238915,-1350.93626615,0.00019899,2]
[349597863,1737322238929,-65770.68534208,0.00019899,2]
[349597865,1737322238940,-819.82717844,0.00019899,2]
[349597867,1737322238951,-2104.0473,0.00019899,2]
[349597869,1737322238964,-100738.29520007,0.00019899,2]
[349597871,1737322238975,-346.9420448,0.000199,5]
[349597873,1737322238986,-468.585,0.00019968,2]
[349597875,1737322238996,-500.0,0.00019998,2]
[349597877,1737322239005,-500.0,0.00019998,2]
[349597879,1737322239015,-500.0,0.00019998,2]
[349597881,1737322239024,-500.0,0.00019998,2]
[349597883,1737322239033,-500.0,0.00019998,2]
[349597885,1737322239043,-500.0,0.00019998,2]
[349597887,1737322239054,-577.52062442,0.00019998,2]
[349597889,1737322239063,-500.0,0.00019998,2]
[349597891,1737322239073,-598.68,0.00019998,2]
[349597893,1737322239083,-516.93737135,0.00019998,2]
[349597895,1737322239092,-500.0,0.00019998,2]
[349597897,1737322239102,-547.98192052,0.00019998,2]
[349597899,1737322239114,-500.0,0.00019998,2]
[349597901,1737322239123,-598.93,0.00019998,2]
[349597903,1737322239133,-500.0,0.00019998,2]
[349597905,1737322239142,-500.0,0.00019998,2]
[349597907,1737322239152,-500.0,0.00019998,2]
[349597909,1737322239161,-500.0,0.00019998,2]
[349597911,1737322239170,-500.0,0.00019998,2]
[349597913,1737322239180,-500.0,0.00019998,2]
[349597915,1737322239189,-1267.35,0.00019998,2]
[349597916,1737322239198,-500.0,0.00019998,2]
[349597919,1737322239208,-500.0,0.00019998,2]
[349597920,1737322239217,-500.0,0.00019998,2]
[349597922,1737322239228,-500.0,0.00019998,2]
[349597924,1737322239237,-500.0,0.00019999,2]
[349597926,1737322239246,-500.0,0.00019999,2]
[349597929,1737322239256,-526.91950581,0.00019999,2]
[349597931,1737322239266,-575.50446804,0.00019999,2]
[349597933,1737322239275,-500.0,0.00019999,2]
[349597934,1737322239285,-590.52,0.00019999,2]
[349597936,1737322239294,-500.0,0.00019999,2]
[349597937,1737322239304,-500.0,0.00019999,2]
[349597938,1737322239314,-500.0,0.00019999,2]
[349597939,1737322239330,-500.0,0.00019999,2]
[349597940,1737322239339,-817.65,0.00019999,2]
[349597941,1737322239350,-500.0,0.0002,2]
[349597943,1737322239364,-987.09,0.0002,2]
[349597945,1737322239374,-500.0,0.0002,2]
[349597947,1737322239383,-500.0,0.0002,2]
[349597949,1737322239392,-502.43,0.0002,2]
[349597951,1737322239402,-963.33,0.0002,2]
[349597952,1737322239411,-500.0,0.0002,2]
[349597953,1737322239421,-500.0,0.0002,2]
[349597954,1737322239431,-500.0,0.0002,2]
[349597955,1737322239440,-5000.0,0.00020021,2]
[349597956,1737322239449,-2045.60857745,0.00020024,2]
[349597957,1737322239461,-690.02331273,0.00020024,2]
[349597958,1737322239472,-852.86082235,0.00020024,2]
[349597959,1737322239482,-135.34551137,0.00020032,2]
[349597989,1737322240811,-1185.7111,0.00019625,2]
[349597990,1737322240821,-154.77153886,0.00019798,2]
[349597991,1737322240831,-355.86718189,0.00020032,2]
[349597992,1737322240840,-587.62282589,0.00020033,2]
[349597993,1737322240998,-1112.66969843,0.00020033,2]
[349597994,1737322241011,-1023.56998838,0.00020033,2]
[349597995,1737322241020,-7.25397162,0.00020082,2]
[349597996,1737322241168,-1537.66602838,0.00020082,2]
[349597997,1737322241179,-649.81,0.00020172,2]
[349597998,1737322241188,-447.13083524,0.00020172,2]
[349597999,1737322241197,-500.0,0.00020172,2]
[349598000,1737322241207,-500.0,0.00020172,2]
[349598001,1737322241216,-241.582488,0.00020172,2]
[349598002,1737322241226,-500.0,0.00020172,2]
[349598003,1737322241235,-500.0,0.00020172,2]
[349598004,1737322241244,-500.0,0.00020172,2]
[349598005,1737322241254,-500.0,0.00020172,2]
[349598006,1737322241264,-500.0,0.00020172,2]
[349598007,1737322241275,-500.0,0.00020172,2]
[349598008,1737322241284,-633.64,0.00020172,2]
[349598009,1737322241294,-581.08,0.00020172,2]
[349598010,1737322241304,-505.9,0.00020172,2]
[349598011,1737322241315,-500.0,0.00020172,2]
[349598012,1737322241325,-500.0,0.00020172,2]
[349598013,1737322241335,-595.1,0.00020172,2]
[349598014,1737322241349,-500.0,0.00020172,2]
[349598015,1737322241365,-619.73,0.00020172,2]
[349598016,1737322241376,-534.73,0.00020172,2]
[349598018,1737322241387,-770.67,0.00020172,2]
[349598020,1737322241397,-500.0,0.00020172,2]
[349598022,1737322241407,-500.0,0.00020172,2]
[349598024,1737322241417,-500.0,0.00020172,2]
[349598026,1737322241427,-1480.05,0.00020172,2]
[349598028,1737322241436,-500.0,0.00020172,2]
[349598030,1737322241446,-500.0,0.00020172,2]
[349598032,1737322241456,-500.0,0.00020172,2]
[349598034,1737322241465,-500.0,0.00020172,2]
[349598036,1737322241474,-500.0,0.00020172,2]
[349598038,1737322241483,-1778.88,0.00020172,2]
[349598040,1737322241492,-649.07,0.00020172,2]
[349598042,1737322241501,-500.0,0.00020172,2]
[349598044,1737322241510,-770.99,0.00020172,2]
[349598046,1737322241519,-500.0,0.00020172,2]
[349598048,1737322241529,-500.0,0.00020172,2]
[349598050,1737322241538,-1405.28,0.00020172,2]
[349598052,1737322241547,-500.0,0.00020172,2]
[349598054,1737322241556,-500.0,0.00020172,2]
[349598056,1737322241565,-500.0,0.00020172,2]
[349598058,1737322241574,-500.0,0.00020172,2]
[349598060,1737322241583,-500.0,0.00020172,2]
[349598062,1737322241592,-924.51,0.00020172,2]
[349598064,1737322241601,-500.0,0.00020172,2]
[349598066,1737322241613,-500.0,0.00020172,2]
[349598068,1737322241623,-1750.43,0.00020172,2]
[349598069,1737322241633,-608.38,0.00020172,2]
[349598072,1737322241643,-500.0,0.00020172,2]
[349598073,1737322241653,-75.37064838,0.00020172,2]
[349598124,1737322242224,-131.18206343,0.00020172,2]
[349598127,1737322242234,-500.0,0.00020172,2]
[349598129,1737322242243,-500.09,0.00020172,2]
[349598131,1737322242253,-500.0,0.00020172,2]
[349598133,1737322242263,-500.0,0.00020172,2]
[349598135,1737322242272,-500.0,0.00020172,2]
[349598137,1737322242282,-512.52314122,0.00020172,2]
[349598140,1737322242291,-940.93,0.00020172,2]
[349598143,1737322242301,-500.0,0.00020172,2]
[349598145,1737322242310,-863.64,0.00020172,2]
[349598148,1737322242320,-500.0,0.00020172,2]
[349598151,1737322242329,-500.0,0.00020172,2]
[349598153,1737322242339,-500.0,0.00020172,2]
[349598155,1737322242348,-702.71,0.00020172,2]
[349598157,1737322242358,-500.0,0.00020172,2]
[349598160,1737322242373,-500.0,0.00020172,2]
[349598161,1737322242382,-710.23,0.00020172,2]
[349598163,1737322242391,-500.0,0.00020172,2]
[349598165,1737322242400,-500.0,0.00020172,2]
[349598167,1737322242409,-543.52,0.00020172,2]
[349598169,1737322242419,-502.68269469,0.00020172,2]
[349598171,1737322242428,-683.08,0.00020172,2]